[Event "African Games Rapid Open 2019"]
[Site "Casablanca"]
[Date "2019.08.26"]
[Round "5.16"]
[White "Ebosse, Kingue Victor Patric"]
[Black "Gohil, Mehul"]
[Result "1-0"]
[ECO "C11"]
[WhiteElo "2055"]
[BlackElo "2076"]
[Annotator "NA"]
[PlyCount "179"]
[EventDate "2019.08.26"]
[EventType "team-tourn"]
[EventCountry "MAR"]
[SourceTitle "playchess.com"]
[Source "ChessBase"]
[SourceQuality "1"]
[TimeControl "900+10"]

1. e4 {[%emt 0:00:00]} e6 {[%emt 0:00:00]} 2. d4 {[%emt 0:00:00]} d5 {[%emt 0:00:00]} 3. Nc3 {[%emt 0:00:00]} Nf6 {[%emt 0:00:00]} 4. Bd3 {[%emt 0:00:04]} Bb4 {[%emt 0:01:31]} 5. e5 {[%emt 0:00:12]} Ne4 {[%emt 0:00:46]} 6. Nge2 {[%emt 0:00:15]} c5 {[%emt 0:00:26]} 7. O-O {[%emt 0:00:20]} cxd4 {[%emt 0:02:02]} 8. Nxe4 {[%emt 0:00:48]} dxe4 {[%emt 0:00:02]} 9. Bxe4 {[%emt 0:00:05]} Bc5 {[%emt 0:00:29]} 10. Nf4 {[%emt 0:01:18]} Nc6 {[%emt 0:00:51]} 11. Nd3 {[%emt 0:00:05]} Be7 {[%emt 0:00:09]} 12. Qg4 {[%emt 0:00:57]} Kf8 {[%emt 0:00:35]} 13. a3 {[%emt 0:01:16]} f5 {[%emt 0:00:16]} 14. exf6 {[%emt 0:00:18]} Bxf6 {[%emt 0:00:02]} 15. f4 {[%emt 0:01:06]} Ne7 {[%emt 0:01:04]} 16. Ne5 {[%emt 0:00:31]} Nf5 {[%emt 0:00:34]} 17. Bd2 {[%emt 0:01:49]} h5 {[%emt 0:01:08]} 18. Bb4+ {[%emt 0:00:26]} Kg8 {[%emt 0:00:02]} 19. Qh3 {[%emt 0:02:05]} Rh6 {[%emt 0:00:24]} 20. Bxf5 {[%emt 0:00:15]} exf5 {[%emt 0:01:40]} 21. Qb3+ {[%emt 0:00:12]} Kh7 {[%emt 0:00:19]} 22. Nf7 {[%emt 0:00:22]} Qb6 {[%emt 0:00:07]} 23. Nxh6 {[%emt 0:00:12]} d3+ {[%emt 0:00:07]} 24. Kh1 {[%emt 0:00:14]} Be6 {[%emt 0:00:02]} 25. Qxd3 {[%emt 0:00:44]} Kxh6 {[%emt 0:00:05]} 26. Qd6 {[%emt 0:00:30]} Bxb2 {[%emt 0:02:30]} 27. Qxb6 {[%emt 0:01:28]} axb6 {[%emt 0:00:01]} 28. Rad1 {[%emt 0:00:08]} Bc4 {[%emt 0:00:31]} 29. Rf3 {[%emt 0:01:23]} Re8 {[%emt 0:00:29]} 30. Rd6+ {[%emt 0:00:26]} Kh7 {[%emt 0:00:05]} 31. Kg1 {[%emt 0:01:13]} Re2 {[%emt 0:00:36]} 32. Rf2 {[%emt 0:00:42]} Re4 {[%emt 0:00:08]} 33. g3 {[%emt 0:00:06]} Bd4 {[%emt 0:00:05]} 34. Kg2 {[%emt 0:00:07]} Bxf2 {[%emt 0:00:05]} 35. Kxf2 {[%emt 0:00:01]} b5 {[%emt 0:00:01]} 36. Rd7 {[%emt 0:00:06]} Re2+ {[%emt 0:00:01]} 37. Kf3 {[%emt 0:00:03]} Rxh2 {[%emt 0:00:12]} 38. Ke3 {[%emt 0:00:19]} Rxc2 {[%emt 0:00:06]} 39. Rxb7 {[%emt 0:00:05]} Re2+ {[%emt 0:00:06]} 40. Kd4 {[%emt 0:00:02]} Rg2 {[%emt 0:00:07]} 41. a4 {[%emt 0:00:02]} Rb2 {[%emt 0:00:09]} 42. Bc3 {[%emt 0:00:05]} Rb3 {[%emt 0:00:12]} 43. a5 {[%emt 0:00:01]} Ra3 {[%emt 0:00:19]} 44. Bb2 {[%emt 0:00:12]} Rxa5 {[%emt 0:00:19]} 45. Kc5 {[%emt 0:00:00]} Ra2 {[%emt 0:00:04]} 46. Rxg7+ {[%emt 0:00:04]} Kh6 47. Be5 {[%emt 0:00:08]} Rg2 {[%emt 0:00:10]} 48. Rg5 {[%emt 0:00:31]} Bd3 {[%emt 0:00:11]} 49. Kd6 {[%emt 0:00:08]} Ra2 {[%emt 0:00:44]} 50. Bg7+ {[%emt 0:00:13]} Kh7 {[%emt 0:00:01]} 51. Bd4 {[%emt 0:00:04]} Ra6+ {[%emt 0:00:04]} 52. Ke7 {[%emt 0:00:08]} Kh6 {[%emt 0:00:05]} 53. Bg7+ {[%emt 0:00:28]} Kh7 {[%emt 0:00:02]} 54. Be5 {[%emt 0:00:08]} Ra7+ {[%emt 0:00:27]} 55. Ke6 {[%emt 0:00:04]} Ra6+ {[%emt 0:00:03]} 56. Bd6 {[%emt 0:00:03]} Kh6 {[%emt 0:00:01]} 57. Ke5 {[%emt 0:00:06]} Ra8 {[%emt 0:00:24]} 58. Kf6 {[%emt 0:00:08]} Ra6 {[%emt 0:00:11]} 59. Rg6+ {[%emt 0:00:02]} Kh7 {[%emt 0:00:01]} 60. Kg5 {[%emt 0:00:02]} b4 {[%emt 0:00:15]} 61. Rh6+ {[%emt 0:00:06]} Kg7 {[%emt 0:00:21]} 62. Be5+ {[%emt 0:00:03]} Kf7 {[%emt 0:00:12]} 63. Rh7+ {[%emt 0:00:07]} Ke6 {[%emt 0:00:19]} 64. Rxh5 {[%emt 0:00:16]} Kd5 {[%emt 0:00:09]} 65. Rh8 {[%emt 0:00:44]} Rb6 {[%emt 0:00:52]} 66. g4 {[%emt 0:00:11]} fxg4 {[%emt 0:00:03]} 67. Kxg4 b3 {[%emt 0:00:11]} 68. Bb2 {[%emt 0:00:24]} Rg6+ {[%emt 0:00:13]} 69. Kf3 {[%emt 0:00:09]} Be4+ {[%emt 0:00:01]} 70. Ke3 {[%emt 0:00:14]} Rg3+ {[%emt 0:00:02]} 71. Kd2 {[%emt 0:00:03]} Rg2+ {[%emt 0:00:03]} 72. Kc3 {[%emt 0:00:02]} Rg3+ {[%emt 0:00:04]} 73. Kb4 {[%emt 0:00:04]} Bc2 {[%emt 0:00:09]} 74. Ka3 {[%emt 0:00:12]} Ke4 {[%emt 0:00:03]} 75. Re8+ {[%emt 0:00:12]} Kf5 {[%emt 0:00:11]} 76. Be5 {[%emt 0:00:06]} Rg1 {[%emt 0:00:11]} 77. Rf8+ {[%emt 0:00:10]} Ke6 {[%emt 0:00:00]} 78. Rf6+ {[%emt 0:00:05]} Ke7 {[%emt 0:00:04]} 79. Rb6 {[%emt 0:00:05]} Rg8 {[%emt 0:00:09]} 80. Kb2 {[%emt 0:00:04]} Ra8 {[%emt 0:00:12]} 81. Kc3 {[%emt 0:00:02]} Rc8+ {[%emt 0:00:03]} 82. Kd4 {[%emt 0:00:03]} Rd8+ {[%emt 0:00:06]} 83. Ke3 {[%emt 0:00:07]} Kf7 {[%emt 0:00:04]} 84. Kf3 {[%emt 0:00:04]} Rg8 {[%emt 0:00:15]} 85. f5 {[%emt 0:00:08]} Re8 {[%emt 0:01:39]} 86. Rb7+ {[%emt 0:00:06]} Kg8 {[%emt 0:00:04]} 87. Kf4 {[%emt 0:00:04]} Rf8 {[%emt 0:01:09]} 88. Rg7+ {[%emt 0:00:03]} Kh8 {[%emt 0:00:03]} 89. f6 {[%emt 0:00:19]} Re8 {[%emt 0:00:01]} 90. f7 {[%emt 0:00:08]} 1-0

[Event "African Games Rapid Open 2019"]
[Site "Casablanca"]
[Date "2019.08.26"]
[Round "5.17"]
[White "Makoto, Rodwell"]
[Black "Koualet-Bebondi, Vianney Archeveq"]
[Result "1-0"]
[ECO "A04"]
[WhiteElo "2373"]
[BlackElo "1679"]
[Annotator "NA"]
[PlyCount "77"]
[EventDate "2019.08.26"]
[EventType "team-tourn"]
[EventCountry "MAR"]
[SourceTitle "playchess.com"]
[Source "ChessBase"]
[SourceQuality "1"]
[TimeControl "900+10"]

1. Nf3 {[%emt 0:00:00]} d6 {[%emt 0:00:02]} 2. d4 {[%emt 0:00:00]} e6 {[%emt 0:00:07]} 3. e4 {[%emt 0:00:06]} Be7 {[%emt 0:00:07]} 4. Bd3 {[%emt 0:00:02]} Nd7 {[%emt 0:00:31]} 5. O-O {[%emt 0:00:05]} Bf6 {[%emt 0:00:37]} 6. Qe2 {[%emt 0:00:16]} e5 {[%emt 0:00:02]} 7. dxe5 {[%emt 0:00:05]} Nxe5 {[%emt 0:00:12]} 8. Nxe5 {[%emt 0:00:03]} Bxe5 {[%emt 0:00:03]} 9. c3 {[%emt 0:00:10]} g6 {[%emt 0:00:12]} 10. f4 {[%emt 0:00:09]} Bg7 {[%emt 0:00:06]} 11. f5 {[%emt 0:00:06]} Qe7 {[%emt 0:00:59]} 12. Na3 {[%emt 0:00:10]} Bd7 {[%emt 0:00:05]} 13. Qf2 {[%emt 0:00:14]} c5 {[%emt 0:01:33]} 14. Nb5 {[%emt 0:00:12]} Bc6 {[%emt 0:00:42]} 15. Bf4 {[%emt 0:00:08]} Be5 {[%emt 0:00:23]} 16. fxg6 {[%emt 0:00:59]} hxg6 {[%emt 0:00:22]} 17. Rad1 {[%emt 0:00:16]} a6 {[%emt 0:00:13]} 18. Bxe5 {[%emt 0:01:02]} dxe5 {[%emt 0:00:13]} 19. Nd6+ {[%emt 0:00:46]} Kd7 {[%emt 0:01:10]} 20. Nxf7 {[%emt 0:00:24]} Rh7 {[%emt 0:01:48]} 21. Qg3 {[%emt 0:00:30]} Kc7 {[%emt 0:01:54]} 22. Nxe5 {[%emt 0:00:24]} Qh4 {[%emt 0:00:46]} 23. Rf7+ {[%emt 0:00:39]} Kb6 {[%emt 0:00:23]} 24. Qxh4 {[%emt 0:00:16]} Rxh4 {[%emt 0:00:02]} 25. Nxg6 {[%emt 0:00:14]} Rg4 {[%emt 0:00:08]} 26. Ne5 {[%emt 0:00:02]} Rg5 {[%emt 0:00:18]} 27. Nxc6 {[%emt 0:00:03]} Kxc6 {[%emt 0:00:41]} 28. Bc4 {[%emt 0:00:04]} Kb6 {[%emt 0:00:45]} 29. Rdd7 {[%emt 0:00:09]} Rb8 {[%emt 0:00:17]} 30. Bd5 {[%emt 0:00:01]} Re5 {[%emt 0:00:32]} 31. Rxb7+ {[%emt 0:00:10]} Rxb7 {[%emt 0:00:02]} 32. Rxb7+ {[%emt 0:00:02]} Ka5 {[%emt 0:00:08]} 33. Bc6 {[%emt 0:00:18]} Rxe4 {[%emt 0:01:04]} 34. Bxe4 {[%emt 0:00:08]} Nf6 {[%emt 0:00:03]} 35. Bc6 {[%emt 0:00:35]} c4 {[%emt 0:00:06]} 36. b4+ {[%emt 0:00:10]} cxb3 {[%emt 0:01:25]} 37. axb3 {[%emt 0:00:06]} Nd5 {[%emt 0:00:06]} 38. b4+ {[%emt 0:00:02]} Nxb4 {[%emt 0:00:32]} 39. cxb4# {[%emt 0:00:02]} 1-0

[Event "African Games Rapid Open 2019"]
[Site "Casablanca"]
[Date "2019.08.26"]
[Round "5.18"]
[White "Mushore, Emarald Takudzwa"]
[Black "Beukes, Dante M"]
[Result "1/2-1/2"]
[ECO "B34"]
[WhiteElo "2198"]
[BlackElo "2130"]
[Annotator "NA"]
[PlyCount "128"]
[EventDate "2019.08.26"]
[EventType "team-tourn"]
[EventCountry "MAR"]
[SourceTitle "playchess.com"]
[Source "ChessBase"]
[SourceQuality "1"]
[TimeControl "900+10"]

1. e4 {[%emt 0:00:00]} c5 {[%emt 0:00:01]} 2. Nf3 {[%emt 0:00:00]} Nc6 {[%emt 0:00:02]} 3. d4 {[%emt 0:00:01]} cxd4 {[%emt 0:00:01]} 4. Nxd4 {[%emt 0:00:03]} g6 {[%emt 0:00:01]} 5. Nc3 {[%emt 0:00:05]} Bg7 {[%emt 0:00:02]} 6. Be3 {[%emt 0:00:02]} Nf6 {[%emt 0:00:01]} 7. Nxc6 {[%emt 0:00:13]} bxc6 {[%emt 0:00:02]} 8. Be2 {[%emt 0:00:20]} Qa5 {[%emt 0:00:09]} 9. O-O {[%emt 0:00:05]} O-O {[%emt 0:00:02]} 10. Qd2 {[%emt 0:00:14]} Re8 {[%emt 0:00:40]} 11. Rfd1 {[%emt 0:00:45]} Bb7 {[%emt 0:00:25]} 12. Nd5 {[%emt 0:00:42]} Qxd2 {[%emt 0:00:07]} 13. Nxf6+ {[%emt 0:00:03]} Bxf6 {[%emt 0:00:02]} 14. Rxd2 {[%emt 0:00:03]} d6 {[%emt 0:00:28]} 15. c3 {[%emt 0:00:06]} c5 {[%emt 0:00:04]} 16. Bf3 {[%emt 0:00:08]} Rab8 {[%emt 0:00:11]} 17. g3 {[%emt 0:00:26]} Ba8 {[%emt 0:00:46]} 18. Bg2 {[%emt 0:00:22]} Rb5 {[%emt 0:00:24]} 19. Rc1 {[%emt 0:00:09]} Reb8 {[%emt 0:00:10]} 20. b3 {[%emt 0:00:30]} a5 {[%emt 0:00:10]} 21. f3 {[%emt 0:00:23]} a4 {[%emt 0:00:33]} 22. Bf1 {[%emt 0:00:02]} Ra5 {[%emt 0:00:21]} 23. Bc4 {[%emt 0:02:11]} axb3 {[%emt 0:00:42]} 24. axb3 {[%emt 0:01:19]} Ra3 {[%emt 0:00:42]} 25. Kf2 {[%emt 0:00:40]} Bc6 {[%emt 0:00:14]} 26. Ke2 {[%emt 0:00:27]} Bb5 {[%emt 0:00:31]} 27. Kd3 {[%emt 0:00:22]} Bxc4+ {[%emt 0:00:02]} 28. bxc4 {[%emt 0:00:02]} Rbb3 {[%emt 0:00:53]} 29. Rdc2 {[%emt 0:00:02]} e6 {[%emt 0:01:08]} 30. f4 {[%emt 0:00:37]} Ra5 {[%emt 0:00:22]} 31. Bd2 {[%emt 0:00:57]} Kf8 {[%emt 0:00:29]} 32. Re1 {[%emt 0:00:52]} Be7 {[%emt 0:01:04]} 33. Rcc1 {[%emt 0:00:03]} Ra2 {[%emt 0:00:37]} 34. Ra1 {[%emt 0:00:21]} Rbb2 {[%emt 0:00:09]} 35. Rxa2 {[%emt 0:00:01]} Rxa2 {[%emt 0:00:01]} 36. Rb1 {[%emt 0:00:03]} Bf6 {[%emt 0:00:56]} 37. Rb8+ {[%emt 0:00:24]} Ke7 {[%emt 0:00:08]} 38. Rb7+ {[%emt 0:00:41]} Ke8 {[%emt 0:00:10]} 39. Rb6 {[%emt 0:01:13]} Ke7 {[%emt 0:00:06]} 40. Rb1 {[%emt 0:00:20]} Kd7 {[%emt 0:00:40]} 41. g4 {[%emt 0:00:17]} h5 {[%emt 0:02:30]} 42. g5 {[%emt 0:00:15]} Bd8 {[%emt 0:01:24]} 43. Rb7+ {[%emt 0:00:11]} Bc7 {[%emt 0:00:03]} 44. Rb1 {[%emt 0:00:01]} Ra8 {[%emt 0:01:05]} 45. Rf1 {[%emt 0:00:06]} Ke7 {[%emt 0:00:34]} 46. f5 {[%emt 0:00:21]} Rf8 {[%emt 0:00:04]} 47. Be3 {[%emt 0:00:55]} exf5 {[%emt 0:00:59]} 48. exf5 {[%emt 0:00:05]} gxf5 49. Rxf5 {[%emt 0:00:03]} Rg8 {[%emt 0:00:26]} 50. Ke4 {[%emt 0:00:25]} Rg6 {[%emt 0:00:35]} 51. Kd5 {[%emt 0:00:18]} Ba5 {[%emt 0:00:23]} 52. Bd2 {[%emt 0:00:36]} Re6 {[%emt 0:00:04]} 53. Rf1 {[%emt 0:01:25]} Re2 {[%emt 0:01:30]} 54. Re1 {[%emt 0:00:02]} Rxe1 55. Bxe1 {[%emt 0:00:01]} Kd7 {[%emt 0:00:03]} 56. h3 {[%emt 0:00:14]} Bd8 {[%emt 0:00:12]} 57. Bd2 {[%emt 0:00:12]} Ba5 {[%emt 0:00:03]} 58. Be1 {[%emt 0:01:25]} Bd8 {[%emt 0:00:01]} 59. Bg3 {[%emt 0:00:09]} Bc7 {[%emt 0:00:02]} 60. Bf4 {[%emt 0:00:06]} Bb8 {[%emt 0:00:01]} 61. Bg3 {[%emt 0:01:19]} Bc7 {[%emt 0:00:01]} 62. Bf2 {[%emt 0:00:18]} Ba5 {[%emt 0:00:04]} 63. Be3 {[%emt 0:00:28]} Bd8 {[%emt 0:00:22]} 64. Bf4 {[%emt 0:00:22]} Bc7 {[%emt 0:00:00] Kd4} 1/2-1/2

[Event "African Games Rapid Open 2019"]
[Site "Casablanca"]
[Date "2019.08.26"]
[Round "5.19"]
[White "Naipal, Hoolan"]
[Black "Gole, Habtamu Ashenafi"]
[Result "0-1"]
[ECO "B91"]
[WhiteElo "1785"]
[BlackElo "2046"]
[Annotator "NA"]
[PlyCount "121"]
[EventDate "2019.08.26"]
[EventType "team-tourn"]
[EventCountry "MAR"]
[SourceTitle "playchess.com"]
[Source "ChessBase"]
[SourceQuality "1"]
[TimeControl "900+10"]

1. e4 {[%emt 0:00:00]} c5 {[%emt 0:00:00]} 2. Nf3 {[%emt 0:00:00]} d6 {[%emt 0:00:00]} 3. d4 {[%emt 0:00:00]} cxd4 {[%emt 0:00:00]} 4. Nxd4 {[%emt 0:00:00]} Nf6 {[%emt 0:00:00]} 5. Nc3 {[%emt 0:00:00]} a6 {[%emt 0:00:00]} 6. g3 {[%emt 0:00:02]} Qc7 {[%emt 0:00:16]} 7. Bg2 {[%emt 0:00:23]} Nbd7 {[%emt 0:00:07]} 8. O-O {[%emt 0:00:29]} e6 {[%emt 0:00:13]} 9. a4 {[%emt 0:00:37]} Rb8 {[%emt 0:00:02]} 10. a5 {[%emt 0:00:16]} Be7 {[%emt 0:00:06]} 11. Be3 {[%emt 0:02:14]} Nc5 {[%emt 0:00:11]} 12. Nb3 {[%emt 0:04:56]} O-O {[%emt 0:01:08]} 13. Nxc5 {[%emt 0:01:18]} dxc5 {[%emt 0:00:02]} 14. Bf4 {[%emt 0:01:37]} e5 {[%emt 0:00:03]} 15. Bg5 {[%emt 0:00:01]} Rd8 {[%emt 0:00:15]} 16. Qe2 {[%emt 0:00:10]} Bg4 {[%emt 0:00:53]} 17. Bf3 {[%emt 0:01:04]} Be6 {[%emt 0:00:19]} 18. Bxf6 {[%emt 0:00:32]} Bxf6 {[%emt 0:00:17]} 19. Nd5 {[%emt 0:00:22]} Bxd5 {[%emt 0:00:02]} 20. exd5 {[%emt 0:00:02]} Be7 {[%emt 0:01:22]} 21. c4 {[%emt 0:00:18]} f5 {[%emt 0:00:07]} 22. Rfe1 {[%emt 0:00:43]} Bf6 {[%emt 0:00:02]} 23. Bg2 {[%emt 0:01:02]} e4 {[%emt 0:00:02]} 24. Ra3 {[%emt 0:01:35]} Bd4 {[%emt 0:00:04]} 25. Kh1 {[%emt 0:00:14]} Re8 {[%emt 0:01:21]} 26. Qd2 {[%emt 0:01:01]} Qe5 {[%emt 0:00:15]} 27. Rb3 {[%emt 0:00:13]} Rf8 {[%emt 0:00:46]} 28. f3 {[%emt 0:00:11]} e3 {[%emt 0:00:09]} 29. Rbxe3 {[%emt 0:00:03]} Bxe3 {[%emt 0:00:03]} 30. Rxe3 {[%emt 0:00:02]} Qc7 {[%emt 0:00:40]} 31. f4 {[%emt 0:00:02]} Rbd8 {[%emt 0:00:17]} 32. Qe1 {[%emt 0:00:22]} Rd7 {[%emt 0:00:48]} 33. Bh3 {[%emt 0:00:09]} g6 {[%emt 0:00:04]} 34. Re6 {[%emt 0:00:16]} Qd8 {[%emt 0:00:37]} 35. Bg2 {[%emt 0:00:17]} Kg7 {[%emt 0:00:36]} 36. Qe5+ {[%emt 0:00:10]} Kg8 {[%emt 0:00:13]} 37. Qe1 {[%emt 0:00:15]} Qc7 {[%emt 0:00:39]} 38. b4 {[%emt 0:00:09]} cxb4 {[%emt 0:00:11]} 39. Qxb4 {[%emt 0:00:02]} Rc8 {[%emt 0:00:16]} 40. Bf1 {[%emt 0:00:10]} Qc5 {[%emt 0:00:19]} 41. Qe1 {[%emt 0:00:18]} Rf8 {[%emt 0:00:41]} 42. Bd3 {[%emt 0:00:09]} Qd4 {[%emt 0:00:11]} 43. Bf1 {[%emt 0:00:07]} Qg7 {[%emt 0:00:23]} 44. Kg2 {[%emt 0:00:14]} Qb2+ {[%emt 0:00:08]} 45. Kh1 {[%emt 0:00:02]} Qd4 {[%emt 0:00:12]} 46. Kg2 {[%emt 0:00:07]} Qc5 {[%emt 0:00:10]} 47. h4 {[%emt 0:00:09]} Qd4 {[%emt 0:00:21]} 48. Kh3 {[%emt 0:00:09]} Rff7 {[%emt 0:00:15]} 49. Kg2 {[%emt 0:00:15]} Kg7 {[%emt 0:00:03]} 50. Kh2 {[%emt 0:00:14]} Rc7 {[%emt 0:00:10]} 51. Kg2 {[%emt 0:00:10]} Rcd7 {[%emt 0:00:25]} 52. Kh2 {[%emt 0:00:07]} h5 {[%emt 0:00:12]} 53. Kg2 {[%emt 0:00:06]} Kh6 {[%emt 0:00:05]} 54. Kh2 {[%emt 0:00:04]} Rc7 {[%emt 0:00:05]} 55. Kg2 {[%emt 0:00:03]} Qg7 {[%emt 0:00:46]} 56. Kh2 {[%emt 0:00:24]} Rce7 {[%emt 0:00:13]} 57. c5 {[%emt 0:00:23]} Rxe6 58. Qxe6 {[%emt 0:00:06]} Re7 {[%emt 0:00:10]} 59. Qd6 {[%emt 0:00:11]} Qb2+ {[%emt 0:00:10]} 60. Bg2 {[%emt 0:00:04]} Re2 {[%emt 0:00:30]} 61. Qf8+ {[%emt 0:00:02]} 0-1

[Event "African Games Rapid Open 2019"]
[Site "Casablanca"]
[Date "2019.08.26"]
[Round "5.20"]
[White "Marie, Patrick"]
[Black "Hassan, Abderrahmane"]
[Result "1-0"]
[ECO "C00"]
[WhiteElo "1921"]
[BlackElo "1786"]
[Annotator "NA"]
[PlyCount "131"]
[EventDate "2019.08.26"]
[EventType "team-tourn"]
[EventCountry "MAR"]
[SourceTitle "playchess.com"]
[Source "ChessBase"]
[SourceQuality "1"]
[TimeControl "900+10"]

1. e4 {[%emt 0:00:00]} e6 {[%emt 0:00:00]} 2. b3 {[%emt 0:00:00]} d5 {[%emt 0:00:08]} 3. Bb2 {[%emt 0:00:00]} d4 {[%emt 0:00:54]} 4. f4 {[%emt 0:01:28]} c5 {[%emt 0:01:41]} 5. Nf3 {[%emt 0:00:17]} Nf6 {[%emt 0:00:04]} 6. Bb5+ {[%emt 0:00:54]} Nc6 {[%emt 0:00:21]} 7. Bxc6+ {[%emt 0:00:13]} bxc6 {[%emt 0:00:01]} 8. d3 {[%emt 0:00:01]} Ng4 {[%emt 0:00:15]} 9. Bc1 {[%emt 0:00:11]} c4 {[%emt 0:01:20]} 10. bxc4 {[%emt 0:00:51]} Bb4+ {[%emt 0:00:02]} 11. Kf1 {[%emt 0:00:25]} Qb6 {[%emt 0:00:47]} 12. h3 {[%emt 0:06:23]} Ne3+ {[%emt 0:01:05]} 13. Bxe3 {[%emt 0:00:02]} dxe3 {[%emt 0:00:00]} 14. c3 {[%emt 0:00:26]} Bd6 {[%emt 0:00:31]} 15. e5 {[%emt 0:00:26]} Qb2 {[%emt 0:00:41]} 16. Nbd2 {[%emt 0:00:31]} exd2 {[%emt 0:02:36]} 17. exd6 {[%emt 0:00:03]} Qxc3 {[%emt 0:00:05]} 18. Ke2 {[%emt 0:00:14]} Qb4 {[%emt 0:00:43]} 19. Qxd2 {[%emt 0:00:19]} Qxd6 {[%emt 0:00:02]} 20. Rab1 {[%emt 0:00:45]} O-O {[%emt 0:00:27]} 21. Rhd1 {[%emt 0:01:09]} c5 {[%emt 0:00:11]} 22. Qe3 {[%emt 0:00:20]} Ba6 {[%emt 0:00:20]} 23. Kf2 {[%emt 0:00:13]} Rab8 {[%emt 0:00:28]} 24. Ng5 {[%emt 0:00:07]} Rbc8 {[%emt 0:02:02]} 25. Qe4 {[%emt 0:00:30]} g6 {[%emt 0:00:16]} 26. Qe3 {[%emt 0:00:01]} Rfd8 {[%emt 0:00:44]} 27. Ne4 {[%emt 0:00:07]} Qd4 {[%emt 0:00:01]} 28. Qxd4 {[%emt 0:00:34]} Rxd4 {[%emt 0:00:07]} 29. Ke3 {[%emt 0:00:12]} Rcd8 {[%emt 0:00:18]} 30. Rbc1 {[%emt 0:00:25]} Bxc4 {[%emt 0:00:16]} 31. Nxc5 {[%emt 0:00:42]} Bb5 {[%emt 0:01:46]} 32. Rc3 {[%emt 0:00:18]} Bc6 {[%emt 0:00:19]} 33. g3 {[%emt 0:00:08]} Bg2 {[%emt 0:00:05]} 34. h4 {[%emt 0:00:12]} h5 {[%emt 0:00:09]} 35. Ra3 {[%emt 0:00:18]} R4d5 {[%emt 0:00:16]} 36. Rd2 {[%emt 0:00:58]} Rxc5 {[%emt 0:00:44]} 37. Rxg2 {[%emt 0:00:02]} Rcd5 {[%emt 0:00:16]} 38. Rc2 {[%emt 0:00:10]} R8d7 {[%emt 0:00:04]} 39. Rac3 {[%emt 0:00:10]} Kg7 {[%emt 0:00:05]} 40. Rb2 {[%emt 0:00:15]} Kf6 {[%emt 0:00:18]} 41. Rbb3 {[%emt 0:00:33]} Kf5 {[%emt 0:00:13]} 42. Kf3 {[%emt 0:00:14]} Ra5 {[%emt 0:00:16]} 43. Ra3 {[%emt 0:00:08]} Rxa3 {[%emt 0:00:36]} 44. Rxa3 {[%emt 0:00:02]} Rd5 {[%emt 0:00:19]} 45. Rc3 {[%emt 0:00:35]} a5 {[%emt 0:00:05]} 46. Ra3 {[%emt 0:00:07]} Kf6 {[%emt 0:00:27]} 47. Rc3 {[%emt 0:00:02]} Kf5 {[%emt 0:00:01]} 48. Ra3 {[%emt 0:00:07]} Kf6 {[%emt 0:00:12]} 49. Rc3 {[%emt 0:00:03]} Rb5 {[%emt 0:00:13]} 50. Rb3 {[%emt 0:00:19]} Rd5 {[%emt 0:00:09]} 51. Ke4 {[%emt 0:00:04]} Rc5 {[%emt 0:00:15]} 52. a4 {[%emt 0:00:16]} Rd5 {[%emt 0:00:06]} 53. Rb5 {[%emt 0:00:03]} Rxb5 54. axb5 {[%emt 0:00:01]} Ke7 {[%emt 0:00:12]} 55. Kd4 {[%emt 0:00:03]} Kd6 {[%emt 0:00:07]} 56. Kc4 {[%emt 0:00:01]} Kc7 {[%emt 0:00:18]} 57. Kc5 {[%emt 0:00:07]} a4 {[%emt 0:00:01]} 58. Kb4 {[%emt 0:00:00]} Kb6 {[%emt 0:00:06]} 59. Kxa4 {[%emt 0:00:02]} f6 {[%emt 0:00:12]} 60. Kb4 {[%emt 0:00:02]} g5 {[%emt 0:00:02]} 61. Kc4 {[%emt 0:00:05]} gxf4 {[%emt 0:00:38]} 62. gxf4 {[%emt 0:00:01]} f5 {[%emt 0:00:04]} 63. Kd4 {[%emt 0:00:07]} Kxb5 64. Ke5 {[%emt 0:00:01]} Kc5 {[%emt 0:00:03]} 65. Kxe6 {[%emt 0:00:01]} Kd4 {[%emt 0:00:01]} 66. Kxf5 {[%emt 0:00:01]} 1-0

[Event "African Games Rapid Open 2019"]
[Site "Casablanca"]
[Date "2019.08.26"]
[Round "5.21"]
[White "Espirito Santo, Waldyr"]
[Black "Asante Debesai Zerabruk"]
[Result "0-1"]
[ECO "B00"]
[WhiteElo "1923"]
[BlackElo "1712"]
[Annotator "NA"]
[PlyCount "64"]
[EventDate "2019.08.26"]
[EventType "team-tourn"]
[EventCountry "MAR"]
[SourceTitle "playchess.com"]
[Source "ChessBase"]
[SourceQuality "1"]
[TimeControl "900+10"]

1. e4 {[%emt 0:00:00]} d6 {[%emt 0:00:00]} 2. d4 {[%emt 0:00:00]} Nd7 {[%emt 0:00:00]} 3. f4 {[%emt 0:00:01]} e5 {[%emt 0:00:25]} 4. dxe5 {[%emt 0:00:23]} dxe5 {[%emt 0:00:02]} 5. Nf3 {[%emt 0:00:12]} Ngf6 {[%emt 0:00:42]} 6. Bd3 {[%emt 0:00:16]} Bd6 {[%emt 0:00:15]} 7. fxe5 {[%emt 0:00:06]} Nxe5 {[%emt 0:00:03]} 8. Nxe5 {[%emt 0:00:05]} Bxe5 {[%emt 0:00:01]} 9. O-O {[%emt 0:00:15]} Bg4 {[%emt 0:00:19]} 10. Qe1 {[%emt 0:00:06]} Qd6 {[%emt 0:00:26]} 11. h3 {[%emt 0:00:27]} Be6 {[%emt 0:00:11]} 12. Nc3 {[%emt 0:00:20]} a6 {[%emt 0:00:18]} 13. Be3 {[%emt 0:00:19]} Qb4 {[%emt 0:00:58]} 14. Rb1 {[%emt 0:00:35]} h6 {[%emt 0:00:24]} 15. Qf2 {[%emt 0:00:41]} b6 {[%emt 0:01:15]} 16. a3 {[%emt 0:00:26]} Qd6 {[%emt 0:01:32]} 17. Rbd1 {[%emt 0:00:28]} Qc6 {[%emt 0:00:26]} 18. Bd4 {[%emt 0:04:08]} Qd6 {[%emt 0:00:58]} 19. Bxe5 {[%emt 0:01:27]} Qxe5 {[%emt 0:00:01]} 20. Nd5 {[%emt 0:00:37]} Bxd5 {[%emt 0:01:00]} 21. exd5 {[%emt 0:00:08]} O-O {[%emt 0:00:14]} 22. c4 {[%emt 0:00:25]} Rfe8 {[%emt 0:00:36]} 23. Rfe1 {[%emt 0:00:05]} Qd6 {[%emt 0:00:07]} 24. b4 {[%emt 0:01:10]} a5 {[%emt 0:00:23]} 25. c5 {[%emt 0:01:48]} Rxe1+ {[%emt 0:00:03]} 26. Qxe1 {[%emt 0:00:22]} bxc5 {[%emt 0:00:10]} 27. bxa5 {[%emt 0:00:08]} c4 {[%emt 0:00:35]} 28. Bc2 {[%emt 0:01:12]} Qxa3 {[%emt 0:00:04]} 29. Ra1 {[%emt 0:01:44]} Qc5+ {[%emt 0:00:02]} 30. Kh1 {[%emt 0:00:09]} Nxd5 {[%emt 0:00:08]} 31. Qe4 {[%emt 0:00:20]} g6 {[%emt 0:02:36]} 32. a6 {[%emt 0:00:30]} Nb6 {[%emt 0:00:36]} 0-1